[Event "Titled Tuesday Blitz December 13 Early 2022"]
[White "Estrada Nieto, Julian"]
[Black "Buscar, Michael"]
[WhiteFideId "5101018"]
[BlackFideId "2603616"]
[WhiteElo "2195"]
[BlackElo "2010"]
[Result "1/2-1/2"]
[Round "07"]
[TimeControl "180+1"]
[Date "2022.12.14"]
[WhiteClock "0:00:15"]
[BlackClock "0:00:17"]

1. e4 {[%clk 0:03:00]}  c6 {[%clk 0:02:55]} 2. d4 {[%clk 0:03:00]}  d6 {[%clk 0:02:55]} 3. Nd2 {[%clk 0:03:01]}  e5 {[%clk 0:02:56]} 4. Ngf3 {[%clk 0:03:00]}  Qc7 {[%clk 0:02:49]} 5. c3 {[%clk 0:02:58]}  Bg4 {[%clk 0:02:49]} 6. h3 {[%clk 0:02:56]}  Bh5 {[%clk 0:02:49]} 7. Bd3 {[%clk 0:02:36]}  Nf6 {[%clk 0:02:48]} 8. O-O {[%clk 0:02:36]}  Nbd7 {[%clk 0:02:48]} 9. Re1 {[%clk 0:02:34]}  Be7 {[%clk 0:02:48]} 10. g4 {[%clk 0:02:30]}  Bg6 {[%clk 0:02:47]} 11. Nh4 {[%clk 0:02:25]}  O-O {[%clk 0:02:41]} 12. Nxg6 {[%clk 0:02:21]}  hxg6 {[%clk 0:02:32]} 13. Nf3 {[%clk 0:02:18]}  Rfe8 {[%clk 0:02:24]} 14. Bg5 {[%clk 0:02:15]}  Nf8 {[%clk 0:02:24]} 15. Bc4 {[%clk 0:02:07]}  d5 {[%clk 0:02:15]} 16. Bxf6 {[%clk 0:01:54]}  Bxf6 {[%clk 0:02:07]} 17. exd5 {[%clk 0:01:53]}  exd4 {[%clk 0:02:05]} 18. cxd4 {[%clk 0:01:44]}  cxd5 {[%clk 0:01:57]} 19. Bxd5 {[%clk 0:01:44]}  Rxe1+ {[%clk 0:01:53]} 20. Qxe1 {[%clk 0:01:42]}  Rd8 {[%clk 0:01:53]} 21. Qe4 {[%clk 0:01:37]}  Qb6 {[%clk 0:01:34]} 22. g5 {[%clk 0:01:26]}  Be7 {[%clk 0:01:30]} 23. Ne5 {[%clk 0:01:19]}  Bxg5 {[%clk 0:01:23]} 24. Nxf7 {[%clk 0:01:12]}  Rxd5 {[%clk 0:01:14]} 25. Qxd5 {[%clk 0:01:12]}  Bf6 {[%clk 0:01:15]} 26. Ne5+ {[%clk 0:00:54]}  Kh7 {[%clk 0:01:14]} 27. Qe4 {[%clk 0:00:40]}  Qxb2 {[%clk 0:01:02]} 28. Rb1 {[%clk 0:00:39]}  Qxa2 {[%clk 0:01:02]} 29. Rxb7 {[%clk 0:00:38]}  Qd2 {[%clk 0:00:58]} 30. Rf7 {[%clk 0:00:32]}  Qg5+ {[%clk 0:00:55]} 31. Kh2 {[%clk 0:00:31]}  Ne6 {[%clk 0:00:55]} 32. Nf3 {[%clk 0:00:26]}  Qh5 {[%clk 0:00:30]} 33. d5 {[%clk 0:00:20]}  Nc5 {[%clk 0:00:18]} 34. Qg4 {[%clk 0:00:20]}  Qxd5 {[%clk 0:00:18]} 35. Rxa7 {[%clk 0:00:19]}  Qd6+ {[%clk 0:00:18]} 36. Qg3 {[%clk 0:00:18]}  Qb6 {[%clk 0:00:17]} 37. Rf7 {[%clk 0:00:17]}  Ne6 {[%clk 0:00:17]} 38. h4 {[%clk 0:00:15]}  Qc6 {[%clk 0:00:15]} 39. Ng5+ {[%clk 0:00:14]}  Bxg5 {[%clk 0:00:13]} 40. hxg5 {[%clk 0:00:14]}  Kg8 {[%clk 0:00:13]} 41. Rf3 {[%clk 0:00:14]}  Nd4 {[%clk 0:00:13]} 42. Rd3 {[%clk 0:00:13]}  Nf5 {[%clk 0:00:14]} 43. Rd8+ {[%clk 0:00:13]}  Kh7 {[%clk 0:00:13]} 44. Qh3+ {[%clk 0:00:13]}  Nh6 {[%clk 0:00:13]} 45. gxh6 {[%clk 0:00:13]}  Qc7+ {[%clk 0:00:14]} 46. Qg3 {[%clk 0:00:13]}  Qxd8 {[%clk 0:00:14]} 47. hxg7 {[%clk 0:00:13]}  Kxg7 {[%clk 0:00:15]} 48. f3 {[%clk 0:00:13]}  Qd2+ {[%clk 0:00:15]} 49. Kh3 {[%clk 0:00:13]}  Qh6+ {[%clk 0:00:15]} 50. Qh4 {[%clk 0:00:14]}  Qxh4+ {[%clk 0:00:15]} 51. Kxh4 {[%clk 0:00:14]}  Kf6 {[%clk 0:00:15]} 52. Kg4 {[%clk 0:00:14]}  g5 {[%clk 0:00:16]} 53. f4 {[%clk 0:00:14]}  gxf4 {[%clk 0:00:17]} 54. Kxf4 {[%clk 0:00:15]} 1/2-1/2


[Site "https://www.chess.com"]

[Event "Titled Tuesday Blitz December 13 Early 2022"]
[White "Fabris, Alberto"]
[Black "Sonnenschein, Philipp"]
[WhiteFideId "801348"]
[BlackFideId "16250877"]
[WhiteElo "2171"]
[BlackElo "2224"]
[Result "1-0"]
[Round "07"]
[TimeControl "180+1"]
[Date "2022.12.14"]
[WhiteClock "0:00:20"]
[BlackClock "0:00:02"]

1. e4 {[%clk 0:03:00]}  c5 {[%clk 0:02:59]} 2. Nf3 {[%clk 0:03:00]}  Nc6 {[%clk 0:02:59]} 3. Bb5 {[%clk 0:02:59]}  g6 {[%clk 0:02:59]} 4. O-O {[%clk 0:02:59]}  Bg7 {[%clk 0:02:59]} 5. Re1 {[%clk 0:02:59]}  e5 {[%clk 0:02:58]} 6. d3 {[%clk 0:02:54]}  Nge7 {[%clk 0:02:56]} 7. Nc3 {[%clk 0:02:50]}  O-O {[%clk 0:02:54]} 8. a3 {[%clk 0:02:46]}  Nd4 {[%clk 0:02:36]} 9. Bc4 {[%clk 0:02:39]}  d6 {[%clk 0:02:32]} 10. h3 {[%clk 0:02:38]}  h6 {[%clk 0:02:28]} 11. Nd5 {[%clk 0:02:37]}  Be6 {[%clk 0:02:27]} 12. c3 {[%clk 0:02:36]}  Nxf3+ {[%clk 0:02:25]} 13. Qxf3 {[%clk 0:02:36]}  Kh7 {[%clk 0:02:22]} 14. Be3 {[%clk 0:02:20]}  f5 {[%clk 0:02:12]} 15. Nxe7 {[%clk 0:02:10]}  Qxe7 {[%clk 0:02:12]} 16. Bxe6 {[%clk 0:02:01]}  fxe4 {[%clk 0:02:09]} 17. Qxe4 {[%clk 0:01:57]}  Qxe6 {[%clk 0:02:09]} 18. c4 {[%clk 0:01:53]}  Rf7 {[%clk 0:01:49]} 19. b4 {[%clk 0:01:52]}  cxb4 {[%clk 0:01:25]} 20. axb4 {[%clk 0:01:49]}  a6 {[%clk 0:01:24]} 21. Rac1 {[%clk 0:01:39]}  h5 {[%clk 0:01:20]} 22. d4 {[%clk 0:01:36]}  Re8 {[%clk 0:01:16]} 23. dxe5 {[%clk 0:01:35]}  Bxe5 {[%clk 0:01:11]} 24. Qd5 {[%clk 0:01:34]}  Rc7 {[%clk 0:01:02]} 25. Qxe6 {[%clk 0:01:32]}  Rxe6 {[%clk 0:01:02]} 26. Kf1 {[%clk 0:01:26]}  Bg7 {[%clk 0:00:49]} 27. Red1 {[%clk 0:01:22]}  Re4 {[%clk 0:00:41]} 28. Rxd6 {[%clk 0:01:14]}  Rexc4 {[%clk 0:00:39]} 29. Rxc4 {[%clk 0:01:14]}  Rxc4 {[%clk 0:00:40]} 30. Rb6 {[%clk 0:01:13]}  Rc7 {[%clk 0:00:36]} 31. Ke2 {[%clk 0:01:13]}  Bf8 {[%clk 0:00:30]} 32. Kd3 {[%clk 0:01:11]}  Kg8 {[%clk 0:00:30]} 33. Rxg6+ {[%clk 0:01:09]}  Kf7 {[%clk 0:00:30]} 34. Rb6 {[%clk 0:01:09]}  Bg7 {[%clk 0:00:25]} 35. Bc5 {[%clk 0:01:07]}  Bf6 {[%clk 0:00:22]} 36. g4 {[%clk 0:01:03]}  hxg4 {[%clk 0:00:22]} 37. hxg4 {[%clk 0:01:03]}  Bg5 {[%clk 0:00:22]} 38. Ke4 {[%clk 0:01:01]}  Bd2 {[%clk 0:00:17]} 39. f4 {[%clk 0:00:58]}  Kg7 {[%clk 0:00:11]} 40. g5 {[%clk 0:00:56]}  Rd7 {[%clk 0:00:09]} 41. Rd6 {[%clk 0:00:52]}  Rxd6 {[%clk 0:00:08]} 42. Bxd6 {[%clk 0:00:51]}  b6 {[%clk 0:00:08]} 43. Kf5 {[%clk 0:00:44]}  a5 {[%clk 0:00:08]} 44. bxa5 {[%clk 0:00:43]}  bxa5 {[%clk 0:00:09]} 45. Be5+ {[%clk 0:00:43]}  Kf8 {[%clk 0:00:08]} 46. g6 {[%clk 0:00:41]}  a4 {[%clk 0:00:06]} 47. Ke6 {[%clk 0:00:36]}  a3 {[%clk 0:00:04]} 48. f5 {[%clk 0:00:36]}  a2 {[%clk 0:00:03]} 49. f6 {[%clk 0:00:35]}  Bf4 {[%clk 0:00:02]} 50. Ba1 {[%clk 0:00:20]} 1-0


[Site "https://www.chess.com"]

[Event "Titled Tuesday Blitz December 13 Early 2022"]
[White "Fromm, Marius"]
[Black "Avazkhonov, Alikhon"]
[WhiteFideId "12993190"]
[BlackFideId "14208504"]
[WhiteElo "2325"]
[BlackElo "1739"]
[Result "1-0"]
[Round "07"]
[TimeControl "180+1"]
[Date "2022.12.14"]
[WhiteClock "0:00:17"]
[BlackClock "0:00:03"]

1. Nf3 {[%clk 0:03:00]}  d5 {[%clk 0:02:59]} 2. c4 {[%clk 0:03:00]}  c6 {[%clk 0:02:48]} 3. g3 {[%clk 0:03:00]}  Nf6 {[%clk 0:02:47]} 4. Bg2 {[%clk 0:03:00]}  Bg4 {[%clk 0:02:45]} 5. Ne5 {[%clk 0:02:49]}  Bf5 {[%clk 0:02:44]} 6. cxd5 {[%clk 0:02:44]}  cxd5 {[%clk 0:02:43]} 7. Qa4+ {[%clk 0:02:44]}  Nbd7 {[%clk 0:02:41]} 8. Nc3 {[%clk 0:02:44]}  e6 {[%clk 0:02:39]} 9. g4 {[%clk 0:02:44]}  Bg6 {[%clk 0:02:25]} 10. h4 {[%clk 0:02:44]}  a6 {[%clk 0:01:59]} 11. Nxd7 {[%clk 0:02:15]}  Qxd7 {[%clk 0:01:49]} 12. Qxd7+ {[%clk 0:02:07]}  Kxd7 {[%clk 0:01:36]} 13. h5 {[%clk 0:02:04]}  Bc2 {[%clk 0:01:36]} 14. g5 {[%clk 0:01:40]}  Ne4 {[%clk 0:01:35]} 15. d3 {[%clk 0:01:40]}  Nxc3 {[%clk 0:01:30]} 16. bxc3 {[%clk 0:01:41]}  Ba4 {[%clk 0:01:30]} 17. Rb1 {[%clk 0:01:38]}  Bc6 {[%clk 0:01:26]} 18. Be3 {[%clk 0:01:31]}  Bd6 {[%clk 0:01:24]} 19. Kd2 {[%clk 0:01:30]}  b5 {[%clk 0:01:23]} 20. f4 {[%clk 0:01:22]}  f5 {[%clk 0:01:20]} 21. Rh4 {[%clk 0:01:19]}  h6 {[%clk 0:00:29]} 22. g6 {[%clk 0:01:06]}  Be7 {[%clk 0:00:28]} 23. Rhh1 {[%clk 0:01:03]}  Bf6 {[%clk 0:00:28]} 24. Bc5 {[%clk 0:01:01]}  Rhc8 {[%clk 0:00:24]} 25. Rhc1 {[%clk 0:00:59]}  Bb7 {[%clk 0:00:17]} 26. d4 {[%clk 0:00:50]}  Be7 {[%clk 0:00:17]} 27. Bxe7 {[%clk 0:00:49]}  Kxe7 {[%clk 0:00:18]} 28. a4 {[%clk 0:00:49]}  Bc6 {[%clk 0:00:17]} 29. axb5 {[%clk 0:00:42]}  Bxb5 {[%clk 0:00:18]} 30. e3 {[%clk 0:00:40]}  Rc7 {[%clk 0:00:17]} 31. Bf1 {[%clk 0:00:31]}  Bxf1 {[%clk 0:00:15]} 32. Rxf1 {[%clk 0:00:32]}  Rac8 {[%clk 0:00:15]} 33. Rb3 {[%clk 0:00:32]}  a5 {[%clk 0:00:14]} 34. Ra1 {[%clk 0:00:32]}  Ra7 {[%clk 0:00:13]} 35. Ra4 {[%clk 0:00:33]}  Rc4 {[%clk 0:00:10]} 36. Rba3 {[%clk 0:00:29]}  Rxa4 {[%clk 0:00:09]} 37. Rxa4 {[%clk 0:00:30]}  Kd6 {[%clk 0:00:10]} 38. Kd3 {[%clk 0:00:31]}  Kc6 {[%clk 0:00:10]} 39. c4 {[%clk 0:00:31]}  Kb6 {[%clk 0:00:07]} 40. Kc3 {[%clk 0:00:28]}  dxc4 {[%clk 0:00:05]} 41. Kxc4 {[%clk 0:00:27]}  Rc7+ {[%clk 0:00:05]} 42. Kd3 {[%clk 0:00:28]}  Kb5 {[%clk 0:00:05]} 43. Ra1 {[%clk 0:00:27]}  a4 {[%clk 0:00:06]} 44. Rb1+ {[%clk 0:00:28]}  Ka5 {[%clk 0:00:07]} 45. Rb8 {[%clk 0:00:28]}  a3 {[%clk 0:00:05]} 46. Ra8+ {[%clk 0:00:24]}  Kb4 {[%clk 0:00:05]} 47. d5 {[%clk 0:00:24]}  exd5 {[%clk 0:00:04]} 48. Kd4 {[%clk 0:00:24]}  Re7 {[%clk 0:00:03]} 49. Rb8+ {[%clk 0:00:20]}  Ka4 {[%clk 0:00:03]} 50. Ra8+ {[%clk 0:00:15]}  Kb3 {[%clk 0:00:03]} 51. Rb8+ {[%clk 0:00:15]}  Ka2 {[%clk 0:00:03]} 52. Kd3 {[%clk 0:00:16]}  Re4 {[%clk 0:00:02]} 53. Rb5 {[%clk 0:00:16]}  Rc4 {[%clk 0:00:01]} 54. Rxd5 {[%clk 0:00:16]}  Rc1 {[%clk 0:00:02]} 55. Rxf5 {[%clk 0:00:15]}  Rg1 {[%clk 0:00:02]} 56. Rf7 {[%clk 0:00:14]}  Kb2 {[%clk 0:00:02]} 57. Rxg7 {[%clk 0:00:14]}  a2 {[%clk 0:00:03]} 58. Ra7 {[%clk 0:00:15]}  a1=Q {[%clk 0:00:02]} 59. Rxa1 {[%clk 0:00:16]}  Kxa1 {[%clk 0:00:03]} 60. f5 {[%clk 0:00:16]}  Kb2 {[%clk 0:00:03]} 61. f6 {[%clk 0:00:17]} 1-0


[Site "https://www.chess.com"]

[Event "Titled Tuesday Blitz December 13 Early 2022"]
[White "Goltseva, Ekaterina"]
[Black "Kirillov, Dmitry"]
[WhiteFideId "24173770"]
[BlackFideId "34180572"]
[WhiteElo "2200"]
[BlackElo "2111"]
[Result "1-0"]
[Round "07"]
[TimeControl "180+1"]
[Date "2022.12.14"]
[WhiteClock "0:00:07"]
[BlackClock "0:00:43"]

1. d4 {[%clk 0:02:53]}  d5 {[%clk 0:02:59]} 2. c4 {[%clk 0:02:53]}  e6 {[%clk 0:03:00]} 3. Nf3 {[%clk 0:02:52]}  c6 {[%clk 0:03:00]} 4. g3 {[%clk 0:02:52]}  dxc4 {[%clk 0:03:01]} 5. Bg2 {[%clk 0:02:53]}  b5 {[%clk 0:03:01]} 6. O-O {[%clk 0:02:54]}  Bb7 {[%clk 0:03:02]} 7. Ne5 {[%clk 0:02:54]}  Nd7 {[%clk 0:03:02]} 8. Nc3 {[%clk 0:02:50]}  a6 {[%clk 0:02:45]} 9. a4 {[%clk 0:02:34]}  Qc8 {[%clk 0:02:38]} 10. Ne4 {[%clk 0:02:01]}  Ngf6 {[%clk 0:02:35]} 11. Nxf7 {[%clk 0:01:41]}  Kxf7 {[%clk 0:02:34]} 12. Ng5+ {[%clk 0:01:41]}  Kg8 {[%clk 0:02:34]} 13. Bh3 {[%clk 0:01:37]}  Bd6 {[%clk 0:02:15]} 14. Bxe6+ {[%clk 0:01:34]}  Kf8 {[%clk 0:02:15]} 15. b3 {[%clk 0:01:17]}  Ke7 {[%clk 0:02:12]} 16. Bh3 {[%clk 0:00:58]}  c5 {[%clk 0:02:11]} 17. bxc4 {[%clk 0:00:49]}  bxc4 {[%clk 0:02:10]} 18. e4 {[%clk 0:00:43]}  cxd4 {[%clk 0:02:04]} 19. Qxd4 {[%clk 0:00:33]}  Qc5 {[%clk 0:02:03]} 20. Qd2 {[%clk 0:00:25]}  h6 {[%clk 0:02:01]} 21. Ne6 {[%clk 0:00:23]}  Qe5 {[%clk 0:01:53]} 22. f3 {[%clk 0:00:11]}  Qxa1 {[%clk 0:01:35]} 23. Bb2 {[%clk 0:00:12]}  Qxa4 {[%clk 0:01:23]} 24. Nxg7 {[%clk 0:00:12]}  Bc5+ {[%clk 0:01:16]} 25. Kh1 {[%clk 0:00:12]}  Rad8 {[%clk 0:01:15]} 26. Nf5+ {[%clk 0:00:08]}  Kf7 {[%clk 0:01:12]} 27. Nxh6+ {[%clk 0:00:08]}  Kg6 {[%clk 0:01:09]} 28. Bf5+ {[%clk 0:00:06]}  Kg7 {[%clk 0:01:06]} 29. Qg5+ {[%clk 0:00:07]}  Kf8 {[%clk 0:01:04]} 30. Bxf6 {[%clk 0:00:06]}  Nxf6 {[%clk 0:00:43]} 31. Qxf6+ {[%clk 0:00:07]}  Ke8 {[%clk 0:00:43]} 32. Qf7# {[%clk 0:00:07]} 1-0


[Site "https://www.chess.com"]

[Event "Titled Tuesday Blitz December 13 Early 2022"]
[White "Grunberg, Mihai-Lucian"]
[Black "Tarlabasi, Emirhan"]
[WhiteFideId "1204149"]
[BlackFideId "6350275"]
[WhiteElo "2363"]
[BlackElo "2200"]
[Result "1-0"]
[Round "07"]
[TimeControl "180+1"]
[Date "2022.12.14"]
[WhiteClock "0:00:09"]
[BlackClock "0:00:22"]

1. Nf3 {[%clk 0:03:00]}  c5 {[%clk 0:03:00]} 2. c4 {[%clk 0:03:01]}  Nf6 {[%clk 0:03:00]} 3. d4 {[%clk 0:03:01]}  cxd4 {[%clk 0:03:00]} 4. Nxd4 {[%clk 0:03:02]}  g6 {[%clk 0:02:59]} 5. Nc3 {[%clk 0:03:02]}  Bg7 {[%clk 0:03:00]} 6. g3 {[%clk 0:03:02]}  O-O {[%clk 0:03:00]} 7. Bg2 {[%clk 0:03:02]}  Nc6 {[%clk 0:03:01]} 8. O-O {[%clk 0:03:02]}  a6 {[%clk 0:02:55]} 9. Re1 {[%clk 0:02:53]}  Qc7 {[%clk 0:02:54]} 10. Nc2 {[%clk 0:02:50]}  d6 {[%clk 0:02:53]} 11. b3 {[%clk 0:02:47]}  Bf5 {[%clk 0:02:44]} 12. Ne3 {[%clk 0:02:45]}  Be6 {[%clk 0:02:35]} 13. Bb2 {[%clk 0:02:42]}  Rac8 {[%clk 0:02:34]} 14. Rc1 {[%clk 0:02:41]}  Rfd8 {[%clk 0:02:33]} 15. Ned5 {[%clk 0:02:33]}  Bxd5 {[%clk 0:02:30]} 16. cxd5 {[%clk 0:02:18]}  Ne5 {[%clk 0:02:29]} 17. f4 {[%clk 0:02:12]}  Ned7 {[%clk 0:02:28]} 18. e4 {[%clk 0:02:07]}  h5 {[%clk 0:02:26]} 19. h3 {[%clk 0:01:57]}  Qb6+ {[%clk 0:02:20]} 20. Kh2 {[%clk 0:01:56]}  Nc5 {[%clk 0:02:14]} 21. Qe2 {[%clk 0:01:45]}  h4 {[%clk 0:02:08]} 22. g4 {[%clk 0:01:44]}  e5 {[%clk 0:01:58]} 23. dxe6 {[%clk 0:01:36]}  Nxe6 {[%clk 0:01:56]} 24. Rf1 {[%clk 0:01:18]}  d5 {[%clk 0:01:43]} 25. exd5 {[%clk 0:01:10]}  Nd4 {[%clk 0:01:30]} 26. Qf2 {[%clk 0:01:03]}  Nd7 {[%clk 0:01:20]} 27. Na4 {[%clk 0:00:56]}  Qa7 {[%clk 0:01:21]} 28. Rxc8 {[%clk 0:00:44]}  Rxc8 {[%clk 0:01:21]} 29. Rd1 {[%clk 0:00:43]}  Nb5 {[%clk 0:00:40]} 30. Qxa7 {[%clk 0:00:40]}  Nxa7 {[%clk 0:00:41]} 31. Bxg7 {[%clk 0:00:26]}  Kxg7 {[%clk 0:00:42]} 32. d6 {[%clk 0:00:24]}  Rc2 {[%clk 0:00:41]} 33. Kg1 {[%clk 0:00:19]}  b5 {[%clk 0:00:41]} 34. Re1 {[%clk 0:00:14]}  bxa4 {[%clk 0:00:38]} 35. Re7 {[%clk 0:00:13]}  axb3 {[%clk 0:00:33]} 36. axb3 {[%clk 0:00:13]}  Nb5 {[%clk 0:00:27]} 37. Rxd7 {[%clk 0:00:13]}  Rd2 {[%clk 0:00:28]} 38. Rd8 {[%clk 0:00:08]}  Rxd6 {[%clk 0:00:20]} 39. Rxd6 {[%clk 0:00:08]}  Nxd6 {[%clk 0:00:21]} 40. b4 {[%clk 0:00:09]}  Kf6 {[%clk 0:00:19]} 41. Kf2 {[%clk 0:00:08]}  g5 {[%clk 0:00:19]} 42. Ke3 {[%clk 0:00:08]}  gxf4+ {[%clk 0:00:19]} 43. Kxf4 {[%clk 0:00:08]}  Ke6 {[%clk 0:00:20]} 44. Bf1 {[%clk 0:00:06]}  f6 {[%clk 0:00:17]} 45. Bxa6 {[%clk 0:00:06]}  Kd5 {[%clk 0:00:17]} 46. Be2 {[%clk 0:00:06]}  Kd4 {[%clk 0:00:18]} 47. b5 {[%clk 0:00:06]}  Kc5 {[%clk 0:00:18]} 48. g5 {[%clk 0:00:06]}  fxg5+ {[%clk 0:00:18]} 49. Kxg5 {[%clk 0:00:06]}  Kb6 {[%clk 0:00:17]} 50. Kxh4 {[%clk 0:00:06]}  Nxb5 {[%clk 0:00:17]} 51. Bxb5 {[%clk 0:00:06]}  Kxb5 {[%clk 0:00:18]} 52. Kg5 {[%clk 0:00:07]}  Kc6 {[%clk 0:00:19]} 53. Kf6 {[%clk 0:00:07]}  Kd7 {[%clk 0:00:20]} 54. Kf7 {[%clk 0:00:07]}  Kd6 {[%clk 0:00:20]} 55. h4 {[%clk 0:00:08]}  Ke5 {[%clk 0:00:21]} 56. h5 {[%clk 0:00:08]}  Kf5 {[%clk 0:00:22]} 57. h6 {[%clk 0:00:09]} 1-0


[Site "https://www.chess.com"]

[Event "Titled Tuesday Blitz December 13 Early 2022"]
[White "Haddouche, Mohamed"]
[Black "Salinas Herrera, Pablo"]
[WhiteFideId "7900660"]
[BlackFideId "3407128"]
[WhiteElo "2443"]
[BlackElo "2557"]
[Result "0-1"]
[Round "07"]
[TimeControl "180+1"]
[Date "2022.12.14"]
[WhiteClock "0:00:01"]
[BlackClock "0:00:16"]

1. e4 {[%clk 0:03:00]}  c5 {[%clk 0:02:58]} 2. Nf3 {[%clk 0:03:00]}  e6 {[%clk 0:02:58]} 3. Nc3 {[%clk 0:03:00]}  a6 {[%clk 0:02:58]} 4. g3 {[%clk 0:02:58]}  d6 {[%clk 0:02:53]} 5. Bg2 {[%clk 0:02:57]}  Nc6 {[%clk 0:02:51]} 6. O-O {[%clk 0:02:55]}  Be7 {[%clk 0:02:50]} 7. d4 {[%clk 0:02:54]}  cxd4 {[%clk 0:02:50]} 8. Nxd4 {[%clk 0:02:55]}  Bd7 {[%clk 0:02:49]} 9. a4 {[%clk 0:02:47]}  Nf6 {[%clk 0:02:48]} 10. Nb3 {[%clk 0:02:47]}  Na5 {[%clk 0:02:42]} 11. Nxa5 {[%clk 0:02:45]}  Qxa5 {[%clk 0:02:42]} 12. Bd2 {[%clk 0:02:46]}  Qc7 {[%clk 0:02:41]} 13. a5 {[%clk 0:02:44]}  O-O {[%clk 0:02:41]} 14. Na4 {[%clk 0:02:31]}  Bc6 {[%clk 0:02:36]} 15. Nb6 {[%clk 0:02:26]}  Rad8 {[%clk 0:02:36]} 16. Qe2 {[%clk 0:01:49]}  d5 {[%clk 0:02:27]} 17. Bf4 {[%clk 0:01:49]}  e5 {[%clk 0:02:20]} 18. exd5 {[%clk 0:01:48]}  exf4 {[%clk 0:01:54]} 19. dxc6 {[%clk 0:01:47]}  fxg3 {[%clk 0:01:55]} 20. hxg3 {[%clk 0:01:03]}  bxc6 {[%clk 0:01:53]} 21. Qc4 {[%clk 0:00:51]}  Qe5 {[%clk 0:01:09]} 22. Rae1 {[%clk 0:00:39]}  Qxa5 {[%clk 0:01:07]} 23. Qxc6 {[%clk 0:00:34]}  Bc5 {[%clk 0:00:41]} 24. Nc4 {[%clk 0:00:29]}  Qb4 {[%clk 0:00:41]} 25. b3 {[%clk 0:00:28]}  h5 {[%clk 0:00:39]} 26. Re5 {[%clk 0:00:21]}  Bd4 {[%clk 0:00:35]} 27. Rg5 {[%clk 0:00:21]}  g6 {[%clk 0:00:32]} 28. Qxa6 {[%clk 0:00:17]}  Kg7 {[%clk 0:00:32]} 29. Qb7 {[%clk 0:00:16]}  Qc3 {[%clk 0:00:27]} 30. Be4 {[%clk 0:00:15]}  Rd7 {[%clk 0:00:26]} 31. Qc6 {[%clk 0:00:14]}  Re8 {[%clk 0:00:25]} 32. Bd3 {[%clk 0:00:13]}  Re6 {[%clk 0:00:24]} 33. Qf3 {[%clk 0:00:12]}  Rde7 {[%clk 0:00:24]} 34. Kg2 {[%clk 0:00:11]}  Ng4 {[%clk 0:00:23]} 35. Rxg4 {[%clk 0:00:08]}  hxg4 {[%clk 0:00:23]} 36. Qxg4 {[%clk 0:00:09]}  Re1 {[%clk 0:00:22]} 37. Rxe1 {[%clk 0:00:08]}  Rxe1 {[%clk 0:00:23]} 38. Nd6 {[%clk 0:00:07]}  Be5 {[%clk 0:00:21]} 39. Ne4 {[%clk 0:00:06]}  Qa1 {[%clk 0:00:20]} 40. Qf3 {[%clk 0:00:05]}  Rg1+ {[%clk 0:00:20]} 41. Kh2 {[%clk 0:00:06]}  Re1 {[%clk 0:00:20]} 42. Ng5 {[%clk 0:00:06]}  Bf6 {[%clk 0:00:20]} 43. Ne4 {[%clk 0:00:06]}  Be7 {[%clk 0:00:19]} 44. Bc4 {[%clk 0:00:03]}  f5 {[%clk 0:00:19]} 45. Nc3 {[%clk 0:00:02]}  Qa7 {[%clk 0:00:17]} 46. Nd5 {[%clk 0:00:01]}  Qd4 {[%clk 0:00:16]} 0-1


[Site "https://www.chess.com"]